[Event "FIDE WCCC Open-08 2024"]
[Site "Montesilvano"]
[Date "2024.11.18"]
[Round "3.1"]
[White "Petrenko, Tymofii"]
[Black "Demchenko, Timofei"]
[Result "0-1"]
[ECO "C02"]
[WhiteElo "1678"]
[BlackElo "1969"]
[PlyCount "68"]
[EventDate "2024.11.18"]
[EventType "swiss"]
[EventCountry "ITA"]
[TimeControl "5400+30"]

1. e4 {[%emt 0:00:01]} e6 {[%emt 0:00:05]} 2. d4 {[%emt 0:00:14]} d5 {[%emt 0:00:07]} 3. e5 {[%emt 0:00:31]} c5 {[%emt 0:00:07]} 4. c3 {[%emt 0:00:33]} Nc6 {[%emt 0:00:07]} 5. Nf3 {[%emt 0:00:17]} Qb6 {[%emt 0:00:06]} 6. a3 {[%emt 0:00:36]} c4 {[%emt 0:00:05]} 7. Nbd2 {[%emt 0:00:47]} Na5 {[%emt 0:00:07]} 8. Be2 {[%emt 0:00:29]} Bd7 {[%emt 0:00:15]} 9. O-O {[%emt 0:01:06]} Ne7 {[%emt 0:00:41]} 10. Rb1 {[%emt 0:01:14]} Nf5 {[%emt 0:06:20]} 11. h3 {[%emt 0:04:25]} Be7 {[%emt 0:06:23]} 12. g4 {[%emt 0:02:42]} Nh4 {[%emt 0:12:14]} 13. Nxh4 {[%emt 0:03:23]} Bxh4 {[%emt 0:00:04]} 14. f4 {[%emt 0:00:29]} Be7 {[%emt 0:01:27]} 15. Kh2 {[%emt 0:10:27]} O-O-O {[%emt 0:04:35]} 16. f5 {[%emt 0:06:16]} h5 {[%emt 0:04:59]} 17. gxh5 {[%emt 0:06:59]} exf5 {[%emt 0:00:28]} 18. Rg1 {[%emt 0:01:12]} g6 {[%emt 0:02:11]} 19. Nf1 {[%emt 0:05:11]} Rdg8 {[%emt 0:07:16]} 20. Ne3 {[%emt 0:02:37]} Qe6 {[%emt 0:04:12]} 21. Ng2 {[%emt 0:07:48]} g5 {[%emt 0:02:57]} 22. Rf1 {[%emt 0:01:53]} f6 {[%emt 0:05:12]} 23. Ne3 {[%emt 0:01:29]} fxe5 {[%emt 0:03:56]} 24. Rxf5 {[%emt 0:03:23]} exd4 {[%emt 0:00:43]} 25. Bg4 {[%emt 0:05:14]} Bd6+ {[%emt 0:06:10]} 26. Kg1 {[%emt 0:00:46]} dxe3 {[%emt 0:02:39]} 27. Rf8+ {[%emt 0:04:32]} Rxf8 {[%emt 0:00:06]} 28. Bxe6 {[%emt 0:00:13]} Bxe6 {[%emt 0:00:29]} 29. Bxe3 {[%emt 0:00:14]} Nc6 {[%emt 0:04:34]} 30. b3 {[%emt 0:00:18]} Ne5 {[%emt 0:01:17]} 31. Bd4 {[%emt 0:00:19]} Nf3+ {[%emt 0:01:19]} 32. Kg2 {[%emt 0:00:13]} Rxh5 {[%emt 0:02:07]} 33. Qxf3 {[%emt 0:01:20]} Rxf3 {[%emt 0:00:09]} 34. Kxf3 {[%emt 0:00:14]} Rxh3+ {[%emt 0:00:13]} 0-1

[Event "FIDE WCCC Open-08 2024"]
[Site "Montesilvano"]
[Date "2024.11.18"]
[Round "3.2"]
[White "Le Doan, Minh Thuc"]
[Black "Li, Aiden Linyuan"]
[Result "0-1"]
[ECO "E04"]
[WhiteElo "1677"]
[BlackElo "1877"]
[PlyCount "60"]
[EventDate "2024.11.18"]
[EventType "swiss"]
[EventCountry "ITA"]
[TimeControl "5400+30"]

1. d4 {[%emt 0:00:02]} d5 {[%emt 0:00:05]} 2. c4 {[%emt 0:00:05]} e6 {[%emt 0:00:05]} 3. Nf3 {[%emt 0:00:07]} Nf6 {[%emt 0:00:05]} 4. g3 {[%emt 0:00:11]} dxc4 {[%emt 0:00:05]} 5. Bg2 {[%emt 0:00:33]} a6 {[%emt 0:00:07]} 6. O-O {[%emt 0:00:54]} Nc6 {[%emt 0:00:24]} 7. e3 {[%emt 0:03:15]} Be7 {[%emt 0:04:42]} 8. Nfd2 {[%emt 0:00:55]} O-O {[%emt 0:03:07]} 9. Nxc4 {[%emt 0:01:15]} Nd5 {[%emt 0:03:15]} 10. e4 {[%emt 0:05:33]} Nf6 {[%emt 0:00:36]} 11. e5 {[%emt 0:00:07]} Nd5 {[%emt 0:00:37]} 12. a3 {[%emt 0:02:04]} f6 {[%emt 0:03:18]} 13. Re1 {[%emt 0:23:50]} fxe5 {[%emt 0:07:51]} 14. Nxe5 {[%emt 0:00:09]} Nxe5 {[%emt 0:02:14]} 15. Rxe5 {[%emt 0:00:11]} Bf6 {[%emt 0:00:36]} 16. Re1 {[%emt 0:01:52]} Ne7 {[%emt 0:01:09]} 17. Be3 {[%emt 0:15:44]} Nf5 {[%emt 0:00:24]} 18. Nc3 {[%emt 0:03:09]} Nxd4 {[%emt 0:00:44]} 19. Qa4 {[%emt 0:01:25]} e5 {[%emt 0:08:48]} 20. Nd5 {[%emt 0:01:47]} c6 {[%emt 0:08:23]} 21. Nxf6+ {[%emt 0:03:36]} Qxf6 {[%emt 0:01:04]} 22. Qd1 {[%emt 0:02:37]} Bf5 {[%emt 0:02:23]} 23. Rc1 {[%emt 0:03:09]} Rad8 {[%emt 0:01:25]} 24. Bxd4 {[%emt 0:05:30]} exd4 {[%emt 0:00:26]} 25. Rf1 {[%emt 0:02:35]} d3 {[%emt 0:01:02]} 26. Rc3 {[%emt 0:02:48]} d2 {[%emt 0:01:50]} 27. f4 {[%emt 0:07:38]} Bg4 {[%emt 0:02:24]} 28. Bf3 {[%emt 0:01:30]} Bxf3 {[%emt 0:00:21]} 29. Rfxf3 {[%emt 0:00:08]} Rfe8 {[%emt 0:00:49]} 30. Rf1 {[%emt 0:00:39]} Qd4+ {[%emt 0:01:15]} 0-1

[Event "FIDE WCCC Open-08 2024"]
[Site "Montesilvano"]
[Date "2024.11.18"]
[Round "3.3"]
[White "Badescu, Matei-Andrei"]
[Black "Szumiec, Jan"]
[Result "1-0"]
[ECO "B22"]
[WhiteElo "1829"]
[BlackElo "1678"]
[PlyCount "66"]
[EventDate "2024.11.18"]
[EventType "swiss"]
[EventCountry "ITA"]
[TimeControl "5400+30"]

1. e4 {[%emt 0:00:03]} c5 {[%emt 0:00:13]} 2. c3 {[%emt 0:00:07]} Nf6 {[%emt 0:03:01]} 3. e5 {[%emt 0:00:41]} Nd5 {[%emt 0:00:07]} 4. d4 {[%emt 0:00:25]} cxd4 {[%emt 0:00:07]} 5. Nf3 {[%emt 0:00:17]} d6 {[%emt 0:01:22]} 6. cxd4 {[%emt 0:00:19]} Nc6 {[%emt 0:00:09]} 7. Bc4 {[%emt 0:00:31]} Nb6 {[%emt 0:00:27]} 8. Bb5 {[%emt 0:00:15]} Bd7 {[%emt 0:00:09]} 9. exd6 {[%emt 0:00:17]} e6 {[%emt 0:00:12]} 10. Bg5 {[%emt 0:00:53]} Qb8 {[%emt 0:07:16]} 11. Nc3 {[%emt 0:01:03]} Bxd6 {[%emt 0:00:16]} 12. O-O {[%emt 0:00:07]} Ne7 {[%emt 0:03:46]} 13. Bxd7+ {[%emt 0:02:39]} Nxd7 {[%emt 0:00:14]} 14. d5 {[%emt 0:02:52]} e5 {[%emt 0:05:08]} 15. Bxe7 {[%emt 0:05:03]} Bxe7 {[%emt 0:00:27]} 16. Qa4 {[%emt 0:00:21]} a6 {[%emt 0:01:36]} 17. Rad1 {[%emt 0:01:48]} b5 {[%emt 0:19:16]} 18. Qg4 {[%emt 0:01:13]} Bf6 {[%emt 0:05:34]} 19. Ne4 {[%emt 0:00:53]} O-O {[%emt 0:01:33]} 20. Qxd7 {[%emt 0:00:06]} Bd8 {[%emt 0:11:46]} 21. Nc3 {[%emt 0:03:09]} b4 {[%emt 0:00:46]} 22. Ne4 {[%emt 0:00:46]} f5 {[%emt 0:02:54]} 23. Nc5 {[%emt 0:00:15]} Rf7 {[%emt 0:04:24]} 24. Qe8+ {[%emt 0:00:16]} Rf8 {[%emt 0:00:12]} 25. Qxf8+ {[%emt 0:00:19]} Kxf8 {[%emt 0:00:13]} 26. Nd7+ {[%emt 0:00:06]} Ke8 {[%emt 0:00:12]} 27. Nxb8 {[%emt 0:00:06]} Rxb8 {[%emt 0:00:10]} 28. Nxe5 {[%emt 0:00:07]} Bf6 {[%emt 0:00:07]} 29. Rfe1 {[%emt 0:00:08]} Bxe5 {[%emt 0:00:07]} 30. Rxe5+ {[%emt 0:00:07]} Kf7 {[%emt 0:00:12]} 31. d6 {[%emt 0:00:06]} Rd8 {[%emt 0:34:04]} 32. d7 {[%emt 0:00:06]} h6 {[%emt 0:00:00]} 33. Re8 {[%emt 0:00:24]} Rxe8 {[%emt 0:00:00]} 1-0

[Event "FIDE WCCC Open-08 2024"]
[Site "Montesilvano"]
[Date "2024.11.18"]
[Round "3.4"]
[White "Sattwik Swain"]
[Black "Czachurski, Ignacy"]
[Result "1-0"]
[ECO "B45"]
[WhiteElo "1787"]
[BlackElo "1672"]
[PlyCount "87"]
[EventDate "2024.11.18"]
[EventType "swiss"]
[EventCountry "ITA"]
[TimeControl "5400+30"]

1. e4 {[%emt 0:00:03]} c5 {[%emt 0:00:21]} 2. Nf3 {[%emt 0:00:09]} e6 {[%emt 0:00:13]} 3. d4 {[%emt 0:00:10]} cxd4 {[%emt 0:00:18]} 4. Nxd4 {[%emt 0:00:10]} Nf6 {[%emt 0:00:33]} 5. Nc3 {[%emt 0:00:18]} Nc6 {[%emt 0:00:10]} 6. Ndb5 {[%emt 0:00:10]} Bc5 {[%emt 0:00:43]} 7. Nd6+ {[%emt 0:11:35]} Ke7 {[%emt 0:01:20]} 8. Nxc8+ {[%emt 0:07:31]} Rxc8 {[%emt 0:00:35]} 9. Bd3 {[%emt 0:01:59]} Re8 {[%emt 0:01:56]} 10. O-O {[%emt 0:00:26]} Kf8 {[%emt 0:00:08]} 11. Bf4 {[%emt 0:01:45]} Bd4 {[%emt 0:08:38]} 12. Nb5 {[%emt 0:10:09]} e5 {[%emt 0:05:48]} 13. Nxd4 {[%emt 0:01:45]} Nxd4 {[%emt 0:01:54]} 14. Be3 {[%emt 0:01:08]} Ne6 {[%emt 0:04:17]} 15. Qd2 {[%emt 0:14:21]} b6 {[%emt 0:02:28]} 16. Rad1 {[%emt 0:10:12]} d5 {[%emt 0:04:33]} 17. exd5 {[%emt 0:00:39]} Qxd5 {[%emt 0:00:38]} 18. Qb4+ {[%emt 0:00:05]} Re7 {[%emt 0:03:42]} 19. Ba6 {[%emt 0:00:49]} Qc6 {[%emt 0:02:18]} 20. Bxc8 {[%emt 0:00:22]} Qxc8 {[%emt 0:00:12]} 21. Rd2 {[%emt 0:00:55]} Ke8 {[%emt 0:02:13]} 22. Rfd1 {[%emt 0:01:57]} g5 {[%emt 0:03:51]} 23. Qb5+ {[%emt 0:01:02]} Nd7 {[%emt 0:01:23]} 24. Rd6 {[%emt 0:10:52]} h5 {[%emt 0:03:22]} 25. Qd3 {[%emt 0:04:21]} Kd8 {[%emt 0:05:40]} 26. Qf5 {[%emt 0:03:33]} Kc7 {[%emt 0:01:58]} 27. Bxg5 {[%emt 0:00:31]} Nxg5 {[%emt 0:00:22]} 28. Qxg5 {[%emt 0:00:15]} f6 {[%emt 0:01:12]} 29. Qf5 {[%emt 0:00:14]} Rg7 {[%emt 0:01:06]} 30. Qe6 {[%emt 0:00:21]} Qd8 {[%emt 0:01:09]} 31. Qc4+ {[%emt 0:00:42]} Kb8 {[%emt 0:00:38]} 32. Qd5 {[%emt 0:01:41]} Qc8 {[%emt 0:00:46]} 33. Rxd7 {[%emt 0:00:42]} Rxd7 {[%emt 0:00:12]} 34. Qxd7 {[%emt 0:00:05]} Qxc2 {[%emt 0:00:28]} 35. Qd2 {[%emt 0:00:10]} Qg6 {[%emt 0:00:18]} 36. Rc1 {[%emt 0:00:06]} Kb7 {[%emt 0:00:16]} 37. Qd7+ {[%emt 0:00:10]} Ka6 {[%emt 0:00:12]} 38. Qa4+ {[%emt 0:00:04]} Kb7 {[%emt 0:00:13]} 39. Qc6+ {[%emt 0:00:04]} Ka6 {[%emt 0:00:14]} 40. a4 {[%emt 0:00:19]} Qd3 {[%emt 0:00:14]} 41. b4 {[%emt 0:00:14]} Qd8 {[%emt 0:00:32]} 42. Ra1 {[%emt 0:00:11]} Qd1+ {[%emt 0:00:27]} 43. Rxd1 {[%emt 0:00:08]} e4 {[%emt 0:00:10]} 44. Qc8# {[%emt 0:00:09]} 1-0

[Event "FIDE WCCC Open-08 2024"]
[Site "Montesilvano"]
[Date "2024.11.18"]
[Round "3.5"]
[White "Zhu, Daniel"]
[Black "Divith Reddy Adulla"]
[Result "0-1"]
[ECO "D47"]
[WhiteElo "2050"]
[BlackElo "1784"]
[PlyCount "86"]
[EventDate "2024.11.18"]
[EventType "swiss"]
[EventCountry "ITA"]
[TimeControl "5400+30"]

1. d4 {[%emt 0:00:14]} d5 {[%emt 0:00:05]} 2. c4 {[%emt 0:00:30]} e6 {[%emt 0:00:06]} 3. Nf3 {[%emt 0:00:15]} Nf6 {[%emt 0:00:06]} 4. Nc3 {[%emt 0:00:09]} c6 {[%emt 0:00:10]} 5. e3 {[%emt 0:02:35]} Nbd7 {[%emt 0:03:15]} 6. Bd3 {[%emt 0:02:37]} dxc4 {[%emt 0:01:35]} 7. Bxc4 {[%emt 0:00:11]} b5 {[%emt 0:00:05]} 8. Bd3 {[%emt 0:00:52]} Bb7 {[%emt 0:01:15]} 9. O-O {[%emt 0:02:47]} Be7 {[%emt 0:01:46]} 10. e4 {[%emt 0:01:05]} b4 {[%emt 0:02:03]} 11. Ne2 {[%emt 0:01:22]} c5 {[%emt 0:01:07]} 12. Ng3 {[%emt 0:01:22]} cxd4 {[%emt 0:00:35]} 13. Nxd4 {[%emt 0:00:30]} O-O {[%emt 0:00:24]} 14. Re1 {[%emt 0:04:50]} Ne5 {[%emt 0:05:55]} 15. Bf1 {[%emt 0:01:21]} Qb6 {[%emt 0:04:59]} 16. Be3 {[%emt 0:03:06]} Rfd8 {[%emt 0:00:49]} 17. Ndf5 {[%emt 0:04:59]} Rxd1 {[%emt 0:00:20]} 18. Nxe7+ {[%emt 0:00:15]} Kf8 {[%emt 0:00:03]} 19. Bxb6 {[%emt 0:00:19]} Rxe1 {[%emt 0:00:07]} 20. Ng6+ {[%emt 0:00:40]} Nxg6 {[%emt 0:00:44]} 21. Bc5+ {[%emt 0:00:08]} Kg8 {[%emt 0:00:23]} 22. Rxe1 {[%emt 0:00:05]} a5 {[%emt 0:00:28]} 23. f3 {[%emt 0:01:07]} Rc8 {[%emt 0:01:56]} 24. Bd4 {[%emt 0:01:18]} e5 {[%emt 0:00:36]} 25. Be3 {[%emt 0:00:55]} Ne8 {[%emt 0:07:06]} 26. Nf5 {[%emt 0:01:07]} Rd8 {[%emt 0:05:20]} 27. Bb6 {[%emt 0:02:44]} Rd2 {[%emt 0:00:11]} 28. Re2 {[%emt 0:00:15]} Rd1 {[%emt 0:00:45]} 29. Ne3 {[%emt 0:01:38]} Ra1 {[%emt 0:01:16]} 30. Bxa5 {[%emt 0:00:52]} b3 {[%emt 0:00:11]} 31. a3 {[%emt 0:00:21]} Rb1 {[%emt 0:03:13]} 32. Kf2 {[%emt 0:00:21]} Nf6 {[%emt 0:02:46]} 33. Rd2 {[%emt 0:00:41]} h6 {[%emt 0:00:24]} 34. Bc4 {[%emt 0:00:50]} Rh1 {[%emt 0:02:31]} 35. Nf1 {[%emt 0:00:29]} Nf4 {[%emt 0:01:37]} 36. g3 {[%emt 0:00:36]} Nh3+ {[%emt 0:00:28]} 37. Kg2 {[%emt 0:00:11]} Rg1+ {[%emt 0:00:10]} 38. Kxh3 {[%emt 0:00:20]} Bc8+ {[%emt 0:00:17]} 39. g4 {[%emt 0:00:07]} Nh5 {[%emt 0:01:09]} 40. Bd8 {[%emt 0:01:55]} g5 {[%emt 0:00:11]} 41. Bxg5 {[%emt 0:08:45]} hxg5 {[%emt 0:00:08]} 42. Rd8+ {[%emt 0:01:12]} Kh7 {[%emt 0:00:15]} 43. Rxc8 {[%emt 0:02:35]} Nf4# {[%emt 0:00:07]} 0-1

[Event "FIDE WCCC Open-08 2024"]
[Site "Montesilvano"]
[Date "2024.11.18"]
[Round "3.6"]
[White "Zhang, Yangming"]
[Black "Adilbek, Adinur"]
[Result "1-0"]
[ECO "B13"]
[WhiteElo "1770"]
[BlackElo "1651"]
[PlyCount "115"]
[EventDate "2024.11.18"]
[EventType "swiss"]
[EventCountry "ITA"]
[TimeControl "5400+30"]

1. e4 {[%emt 0:00:17]} c6 {[%emt 0:00:24]} 2. d4 {[%emt 0:00:32]} d5 {[%emt 0:00:12]} 3. exd5 {[%emt 0:00:36]} cxd5 {[%emt 0:00:04]} 4. Bd3 {[%emt 0:00:29]} Nc6 {[%emt 0:00:08]} 5. c3 {[%emt 0:00:07]} Nf6 {[%emt 0:00:30]} 6. h3 {[%emt 0:00:36]} g6 {[%emt 0:00:13]} 7. Nf3 {[%emt 0:00:42]} Bf5 {[%emt 0:00:11]} 8. Ne5 {[%emt 0:01:12]} Bg7 {[%emt 0:02:43]} 9. Bxf5 {[%emt 0:06:42]} gxf5 {[%emt 0:00:18]} 10. Bf4 {[%emt 0:00:07]} e6 {[%emt 0:00:54]} 11. Nd2 {[%emt 0:00:18]} Rc8 {[%emt 0:10:37]} 12. Qe2 {[%emt 0:04:43]} Ne4 {[%emt 0:12:02]} 13. Nxe4 {[%emt 0:02:12]} fxe4 {[%emt 0:01:16]} 14. O-O {[%emt 0:02:32]} Nxe5 {[%emt 0:07:03]} 15. dxe5 {[%emt 0:00:25]} O-O {[%emt 0:00:58]} 16. f3 {[%emt 0:00:21]} Rc4 {[%emt 0:05:57]} 17. Rad1 {[%emt 0:03:05]} Qh4 {[%emt 0:01:27]} 18. Qe3 {[%emt 0:06:24]} Rfc8 {[%emt 0:03:21]} 19. Rd4 {[%emt 0:04:20]} Rxd4 {[%emt 0:14:08]} 20. cxd4 {[%emt 0:01:57]} exf3 {[%emt 0:00:09]} 21. Qxf3 {[%emt 0:00:26]} Rc7 {[%emt 0:03:20]} 22. Kh1 {[%emt 0:06:56]} Bh6 {[%emt 0:03:04]} 23. Bxh6 {[%emt 0:08:27]} Qxh6 {[%emt 0:00:07]} 24. Qa3 {[%emt 0:00:06]} Rc1 {[%emt 0:03:21]} 25. Qg3+ {[%emt 0:00:22]} Kf8 {[%emt 0:01:16]} 26. Qa3+ {[%emt 0:00:21]} Ke8 {[%emt 0:00:38]} 27. Qa4+ {[%emt 0:02:26]} Kd8 {[%emt 0:00:27]} 28. Qb5 {[%emt 0:00:54]} Qf4 {[%emt 0:06:09]} 29. Rxc1 {[%emt 0:02:33]} Qxc1+ {[%emt 0:00:09]} 30. Kh2 {[%emt 0:00:03]} Qf4+ {[%emt 0:01:29]} 31. Kh1 {[%emt 0:00:20]} Qxd4 {[%emt 0:00:55]} 32. Qxb7 {[%emt 0:00:17]} Qxe5 {[%emt 0:01:53]} 33. Qa8+ {[%emt 0:02:02]} Ke7 {[%emt 0:00:36]} 34. Qxa7+ {[%emt 0:00:05]} Kf8 {[%emt 0:00:59]} 35. Qa3+ {[%emt 0:00:42]} Kg7 {[%emt 0:00:08]} 36. b4 {[%emt 0:00:18]} d4 {[%emt 0:00:36]} 37. Qd3 {[%emt 0:00:56]} Qd5 {[%emt 0:02:07]} 38. b5 {[%emt 0:00:21]} e5 {[%emt 0:00:18]} 39. b6 {[%emt 0:01:02]} e4 {[%emt 0:04:13]} 40. Qg3+ {[%emt 0:00:28]} Kf6 {[%emt 0:00:31]} 41. Qf4+ {[%emt 0:01:29]} Kg6 {[%emt 0:00:15]} 42. Qc7 {[%emt 0:06:12]} e3 {[%emt 0:00:13]} 43. b7 {[%emt 0:00:08]} e2 {[%emt 0:03:00]} 44. Qg3+ {[%emt 0:00:07]} Qg5 {[%emt 0:00:17]} 45. b8=Q {[%emt 0:00:20]} Kh6 {[%emt 0:00:12]} 46. Qxg5+ {[%emt 0:00:21]} Kxg5 {[%emt 0:00:04]} 47. Qg3+ {[%emt 0:00:16]} Kf5 {[%emt 0:00:03]} 48. Qg4+ {[%emt 0:00:29]} Ke5 {[%emt 0:00:05]} 49. Qxe2+ {[%emt 0:00:37]} Kd5 {[%emt 0:00:03]} 50. Qd3 {[%emt 0:00:49]} f5 {[%emt 0:00:01]} 51. a4 {[%emt 0:00:17]} Kc5 {[%emt 0:00:03]} 52. a5 {[%emt 0:00:16]} f4 {[%emt 0:00:04]} 53. a6 {[%emt 0:00:09]} Kb6 {[%emt 0:00:00]} 54. Qa3 {[%emt 0:00:27]} f3 {[%emt 0:18:19]} 55. gxf3 {[%emt 0:00:23]} h5 {[%emt 0:00:00]} 56. a7 {[%emt 0:00:20]} d3 {[%emt 0:00:00]} 57. a8=Q {[%emt 0:00:23]} d2 {[%emt 0:00:00]} 58. Q3a5# {[%emt 0:00:25]} 1-0

[Event "FIDE WCCC Open-08 2024"]
[Site "Montesilvano"]
[Date "2024.11.18"]
[Round "3.7"]
[White "Elemes, Nurmukhamed"]
[Black "Cherem, Yoseph"]
[Result "1-0"]
[ECO "E14"]
[WhiteElo "1735"]
[BlackElo "1634"]
[PlyCount "45"]
[EventDate "2024.11.18"]
[EventType "swiss"]
[EventCountry "ITA"]
[TimeControl "5400+30"]

1. d4 {[%emt 0:00:18]} Nf6 {[%emt 0:00:21]} 2. c4 {[%emt 0:00:30]} e6 {[%emt 0:00:29]} 3. Nf3 {[%emt 0:00:39]} Bb4+ {[%emt 0:00:31]} 4. Nbd2 {[%emt 0:00:14]} b6 {[%emt 0:00:39]} 5. a3 {[%emt 0:00:12]} Bxd2+ {[%emt 0:00:37]} 6. Qxd2 {[%emt 0:00:07]} Bb7 {[%emt 0:00:39]} 7. e3 {[%emt 0:00:59]} Ne4 {[%emt 0:01:34]} 8. Qc2 {[%emt 0:02:04]} O-O {[%emt 0:00:20]} 9. Bd3 {[%emt 0:00:54]} f5 {[%emt 0:00:12]} 10. O-O {[%emt 0:00:44]} a5 {[%emt 0:01:03]} 11. b3 {[%emt 0:02:09]} g5 {[%emt 0:01:52]} 12. Bb2 {[%emt 0:02:31]} g4 {[%emt 0:00:48]} 13. Nd2 {[%emt 0:01:47]} d5 {[%emt 0:00:19]} 14. cxd5 {[%emt 0:02:17]} exd5 {[%emt 0:00:22]} 15. Rac1 {[%emt 0:01:28]} Ba6 {[%emt 0:01:58]} 16. Bxa6 {[%emt 0:01:22]} Nxa6 {[%emt 0:00:27]} 17. f3 {[%emt 0:02:46]} Nxd2 {[%emt 0:01:22]} 18. Qxd2 {[%emt 0:00:15]} Qd7 {[%emt 0:02:05]} 19. fxg4 {[%emt 0:02:01]} fxg4 {[%emt 0:01:24]} 20. e4 {[%emt 0:05:59]} dxe4 {[%emt 0:01:16]} 21. d5 {[%emt 0:04:23]} e3 {[%emt 0:08:43]} 22. Qd4 {[%emt 0:00:53]} Rxf1+ {[%emt 0:02:41]} 23. Rxf1 {[%emt 0:00:11]} 1-0

[Event "FIDE WCCC Open-08 2024"]
[Site "Montesilvano"]
[Date "2024.11.18"]
[Round "3.8"]
[White "Cardas, Serghei"]
[Black "Singh, Ian Avery"]
[Result "1-0"]
[ECO "D10"]
[WhiteElo "1627"]
[BlackElo "1713"]
[PlyCount "59"]
[EventDate "2024.11.18"]
[EventType "swiss"]
[EventCountry "ITA"]
[TimeControl "5400+30"]

1. d4 {[%emt 0:00:01]} d5 {[%emt 0:00:03]} 2. c4 {[%emt 0:00:11]} c6 {[%emt 0:00:05]} 3. Nc3 {[%emt 0:01:08]} Nf6 {[%emt 0:00:06]} 4. Bf4 {[%emt 0:01:01]} dxc4 {[%emt 0:04:02]} 5. a4 {[%emt 0:00:24]} Qa5 {[%emt 0:11:56]} 6. Bd2 {[%emt 0:10:55]} Be6 {[%emt 0:12:39]} 7. e4 {[%emt 0:04:03]} Qc7 {[%emt 0:03:51]} 8. Nf3 {[%emt 0:01:45]} h6 {[%emt 0:03:40]} 9. Qc2 {[%emt 0:01:54]} g6 {[%emt 0:01:20]} 10. e5 {[%emt 0:03:48]} Nd5 {[%emt 0:00:49]} 11. Ne4 {[%emt 0:05:26]} b5 {[%emt 0:02:56]} 12. Qc1 {[%emt 0:02:41]} Nd7 {[%emt 0:02:48]} 13. Be2 {[%emt 0:01:36]} Bg7 {[%emt 0:04:00]} 14. O-O {[%emt 0:00:16]} Rc8 {[%emt 0:07:58]} 15. Nc3 {[%emt 0:02:53]} Nxc3 {[%emt 0:08:45]} 16. Qxc3 {[%emt 0:01:07]} a6 {[%emt 0:05:01]} 17. Nh4 {[%emt 0:05:44]} c5 {[%emt 0:01:38]} 18. Qg3 {[%emt 0:00:35]} g5 {[%emt 0:00:30]} 19. f4 {[%emt 0:00:38]} cxd4 {[%emt 0:00:54]} 20. Bf3 {[%emt 0:01:24]} Nxe5 {[%emt 0:01:52]} 21. fxe5 {[%emt 0:01:56]} Bxe5 {[%emt 0:01:13]} 22. Qf2 {[%emt 0:00:32]} gxh4 {[%emt 0:13:57]} 23. Bh5 {[%emt 0:00:19]} Bf6 {[%emt 0:01:43]} 24. Rae1 {[%emt 0:01:03]} Kf8 {[%emt 0:03:43]} 25. Rxe6 {[%emt 0:01:14]} fxe6 {[%emt 0:00:15]} 26. Qxd4 {[%emt 0:00:34]} Qc5 {[%emt 0:00:21]} 27. Rxf6+ {[%emt 0:00:27]} exf6 {[%emt 0:01:28]} 28. Bb4 {[%emt 0:00:13]} Rh7 {[%emt 0:05:49]} 29. Bxc5+ {[%emt 0:00:07]} Kg7 {[%emt 0:00:08]} 30. Qd7+ {[%emt 0:00:14]} 1-0